fUST/lending_fUST_20250724
["ID","MTS","AMOUNT","RATE_DAILY","PERIOD"]
[374598901,1753369842243,-460.0,0.00019887,2]
[374598902,1753369842254,-2207.52044628,0.000199,2]
[374598903,1753369842263,-500.0,0.00019973,2]
[374598904,1753369842276,-500.0,0.00019973,2]
[374598905,1753369842285,-500.0,0.00019973,2]
[374598906,1753369842296,-500.38,0.00019973,2]
[374598907,1753369842306,-5000.0,0.00019983,2]
[374598908,1753369842315,-460.0,0.00019985,2]
[374598909,1753369842325,-460.0,0.00019985,2]
[374598910,1753369842334,-1000.0,0.00019985,2]
[374598915,1753369842343,-460.0,0.00019985,2]
[374598917,1753369842352,-460.0,0.00019985,2]
[374598918,1753369842362,-460.0,0.00019985,2]
[374598919,1753369842374,-316.93484419,0.00019986,2]
[374598920,1753369842383,-460.0,0.00019986,2]
[374598922,1753369842392,-460.0,0.00019986,2]
[374598923,1753369842401,-460.0,0.00019986,2]
[374598924,1753369842410,-460.0,0.00019986,2]
[374598926,1753369842419,-460.0,0.00019986,2]
[374598927,1753369842428,-460.0,0.00019986,2]
[374598928,1753369842438,-460.0,0.00019986,2]
[374598929,1753369842447,-460.0,0.00019986,2]
[374598930,1753369842457,-520.2,0.00019986,2]
[374598931,1753369842466,-172.5,0.00019986,2]
[374598932,1753369842475,-460.0,0.00019986,2]
[374598933,1753369842486,-439.41918382,0.00019986,2]
[374598934,1753369842495,-460.0,0.00019986,2]
[374598935,1753369842504,-500.0,0.00019987,2]
[374598937,1753369842514,-460.0,0.00019988,2]
[374598939,1753369842524,-460.0,0.00019988,2]
[374598940,1753369842533,-460.0,0.00019988,2]
[374598941,1753369842543,-460.0,0.00019988,2]
[374598943,1753369842552,-460.0,0.00019988,2]
[374598944,1753369842561,-460.0,0.00019988,2]
[374598945,1753369842571,-460.0,0.00019988,2]
[374598946,1753369842581,-460.0,0.00019988,2]
[374598947,1753369842590,-460.0,0.00019988,2]
[374598948,1753369842600,-462.05378941,0.00019988,2]
[374598949,1753369842610,-460.0,0.00019988,2]
[374598950,1753369842620,-460.0,0.00019988,2]
[374598951,1753369842630,-460.0,0.00019988,2]
[374598952,1753369842639,-460.0,0.00019988,2]
[374598953,1753369842649,-460.0,0.00019988,2]
[374598954,1753369842666,-460.0,0.00019988,2]
[374598955,1753369842675,-460.0,0.00019988,2]
[374598956,1753369842796,-460.0,0.00019988,2]
[374598957,1753369842807,-460.0,0.00019988,2]
[374598958,1753369842816,-460.0,0.00019988,2]
[374598959,1753369842826,-460.0,0.00019988,2]
[374598960,1753369842836,-460.0,0.00019988,2]
[374598961,1753369842846,-460.0,0.00019988,2]
[374598962,1753369842855,-460.0,0.00019988,2]
[374598963,1753369842865,-460.0,0.00019988,2]
[374598964,1753369842875,-460.0,0.00019988,2]
[374598965,1753369842885,-460.0,0.00019988,2]
[374598966,1753369842894,-460.0,0.00019988,2]
[374598967,1753369842904,-460.0,0.00019988,2]
[374598968,1753369842914,-460.0,0.00019988,2]
[374598969,1753369842923,-17121.50508068,0.0001999,2]
[374598971,1753369842933,-173.743,0.0002,2]
[374598972,1753369842942,-2207.52044602,0.00020107,2]
[374598973,1753369842952,-460.0,0.00020156,2]
[374598974,1753369842962,-1817.27,0.00020156,2]
[374598975,1753369842971,-460.0,0.00020156,2]
[374598976,1753369842981,-460.0,0.00020156,2]
[374598977,1753369842991,-622.61,0.00020156,2]
[374598978,1753369843001,-460.0,0.00020157,2]
[374598979,1753369843011,-460.0,0.00020157,2]
[374598980,1753369843024,-460.0,0.00020157,2]
[374598981,1753369843034,-460.0,0.00020157,2]
[374598982,1753369843043,-460.0,0.00020157,2]
[374598983,1753369843053,-568.76,0.00020157,2]
[374598984,1753369843062,-460.0,0.00020157,2]
[374598985,1753369843071,-1345.73,0.00020157,2]
[374598986,1753369843080,-460.0,0.00020157,2]
[374598987,1753369843090,-460.0,0.00020157,2]
[374598988,1753369843099,-460.0,0.00020157,2]
[374598989,1753369843108,-915.03,0.00020157,2]
[374598990,1753369843117,-460.0,0.00020158,2]
[374598991,1753369843127,-460.0,0.00020158,2]
[374598992,1753369843135,-460.0,0.00020158,2]
[374598993,1753369843145,-550.98,0.00020158,2]
[374598994,1753369843154,-460.0,0.00020158,2]
[374598995,1753369843163,-460.0,0.00020158,2]
[374598996,1753369843173,-460.0,0.00020158,2]
[374598997,1753369843182,-460.0,0.00020158,2]
[374598998,1753369843192,-460.0,0.00020158,2]
[374598999,1753369843202,-460.0,0.00020158,2]
[374599000,1753369843215,-460.0,0.00020158,2]
[374599001,1753369843224,-460.0,0.00020158,2]
[374599002,1753369843234,-460.0,0.00020158,2]
[374599003,1753369843243,-460.0,0.00020158,2]
[374599004,1753369843254,-460.0,0.00020158,2]
[374599005,1753369843264,-460.0,0.00020158,2]
[374599006,1753369843275,-460.0,0.00020158,2]
[374599007,1753369843286,-460.0,0.00020158,2]
[374599008,1753369843296,-2764.12,0.00020158,2]
[374599009,1753369843305,-460.0,0.00020158,2]
[374599010,1753369843315,-460.0,0.00020158,2]
[374599011,1753369843324,-460.0,0.00020158,2]
[374599012,1753369843333,-460.0,0.00020158,2]
[374599013,1753369843343,-460.0,0.00020158,2]
[374599014,1753369843352,-460.0,0.00020161,2]
[374599015,1753369843362,-460.0,0.00020161,2]
[374599016,1753369843372,-460.0,0.00020161,2]
[374599017,1753369843382,-460.0,0.00020161,2]
[374599018,1753369843391,-460.0,0.00020161,2]
[374599019,1753369843401,-460.0,0.00020161,2]
[374599020,1753369843411,-286.10940943,0.00020161,2]
[374599021,1753369843421,-460.0,0.00020161,2]
[374599022,1753369843431,-460.0,0.00020161,2]
[374599023,1753369843440,-460.0,0.00020161,2]
[374599024,1753369843450,-460.0,0.00020161,2]
[374599025,1753369843459,-460.0,0.00020161,2]
[374599026,1753369843468,-460.0,0.00020161,2]
[374599027,1753369843478,-460.0,0.00020161,2]
[374599028,1753369843489,-460.0,0.00020161,2]
[374599029,1753369843498,-460.0,0.00020161,2]
[374599030,1753369843507,-460.0,0.00020161,2]
[374599031,1753369843517,-460.0,0.00020161,2]
[374599032,1753369843527,-460.0,0.00020161,2]
[374599033,1753369843536,-460.0,0.00020161,2]
[374599034,1753369843546,-460.0,0.00020161,2]
[374599035,1753369843555,-460.0,0.00020161,2]
[374599036,1753369843565,-460.0,0.00020161,2]
[374599037,1753369843574,-892.16,0.00020161,2]
[374599038,1753369843585,-460.0,0.00020161,2]
[374599039,1753369843594,-460.0,0.00020161,2]
[374599040,1753369843604,-460.0,0.00020161,2]
[374599041,1753369843614,-460.0,0.00020161,2]
[374599042,1753369843624,-460.0,0.00020161,2]
[374599043,1753369843633,-520.87,0.00020161,2]
[374599044,1753369843644,-441.64719461,0.00020161,2]
[374599045,1753369843654,-460.0,0.00020161,2]
[374599046,1753369843664,-1355.64,0.00020161,2]
[374599047,1753369843674,-728.36,0.00020161,2]
[374599048,1753369843683,-460.0,0.00020161,2]
[374599049,1753369843694,-1595.08,0.00020161,2]
[374599050,1753369843704,-470.01,0.00020161,2]
[374599051,1753369843714,-460.0,0.00020161,2]
[374599052,1753369843723,-460.0,0.00020161,2]
[374599053,1753369843733,-460.0,0.00020259,2]
[374599054,1753369843742,-460.0,0.00020259,2]
[374599055,1753369843752,-460.0,0.0002026,2]
[374599056,1753369843762,-460.0,0.0002026,2]
[374599057,1753369843774,-460.0,0.0002026,2]
[374599058,1753369843784,-460.0,0.0002026,2]
[374599059,1753369843793,-270.79141094,0.00020262,2]
[374599060,1753369843803,-463.65288381,0.00020262,2]
[374599061,1753369843813,-460.0,0.00020262,2]
[374599062,1753369843822,-460.0,0.00020262,2]
[374599063,1753369843832,-460.0,0.00020262,2]
[374599064,1753369843842,-2207.52044602,0.00020314,3]
[374599065,1753369843852,-460.0,0.0002043,2]
[374599066,1753369843862,-1817.27,0.0002043,2]
[374599067,1753369843872,-499.59259414,0.0002043,2]
[374599068,1753369843882,-622.61,0.0002043,2]
[374599069,1753369843892,-460.0,0.00020431,2]
[374599070,1753369843902,-460.0,0.00020431,2]
[374599071,1753369843911,-460.0,0.00020431,2]
[374599072,1753369843921,-460.0,0.00020431,2]
[374599073,1753369843930,-460.0,0.00020431,2]
[374599074,1753369843939,-568.76,0.00020431,2]
[374599075,1753369843948,-460.0,0.00020431,2]
[374599076,1753369843958,-1345.73,0.00020431,2]
[374599077,1753369843968,-460.0,0.00020431,2]
[374599078,1753369843977,-460.0,0.00020431,2]
[374599079,1753369843987,-460.0,0.00020431,2]
[374599080,1753369843996,-915.03,0.00020431,2]
[374599081,1753369844007,-460.0,0.00020432,2]
[374599082,1753369844018,-363.47691188,0.00020432,2]
[374599083,1753369844028,-550.98,0.00020432,2]
[374599084,1753369844038,-460.0,0.00020432,2]
[374599085,1753369844047,-460.0,0.00020432,2]
[374599086,1753369844057,-460.0,0.00020432,2]
[374599087,1753369844067,-467.63122922,0.00020432,2]
[374599088,1753369844076,-460.0,0.00020432,2]
[374599089,1753369844086,-460.0,0.00020432,2]
[374599090,1753369844095,-460.0,0.00020432,2]
[374599091,1753369844104,-460.0,0.00020432,2]
[374599092,1753369844114,-460.0,0.00020432,2]
[374599093,1753369844124,-460.0,0.00020432,2]
[374599094,1753369844134,-460.0,0.00020432,2]
[374599095,1753369844143,-460.0,0.00020432,2]
[374599096,1753369844152,-2764.12,0.00020432,2]
[374599097,1753369844162,-460.0,0.00020432,2]
[374599098,1753369844171,-460.0,0.00020432,2]
[374599099,1753369844180,-460.0,0.00020432,2]
[374599100,1753369844190,-460.0,0.00020432,2]
[374599101,1753369844200,-460.0,0.00020432,2]
[374599102,1753369844214,-595.01358414,0.00020435,2]
[374599103,1753369844223,-231.21,0.00020435,2]
[374599104,1753369844233,-460.0,0.00020435,2]
[374599105,1753369844242,-460.0,0.00020435,2]
[374599106,1753369844253,-460.0,0.00020435,2]
[374599107,1753369844263,-460.0,0.00020435,2]
[374599108,1753369844273,-198.82698452,0.00020435,2]
[374599109,1753369844283,-460.0,0.00020435,2]
[374599110,1753369844292,-460.0,0.00020435,2]
[374599111,1753369844301,-460.0,0.00020435,2]
[374599112,1753369844311,-460.0,0.00020435,2]
[374599113,1753369844322,-464.63859633,0.00020435,2]
[374599114,1753369844331,-460.0,0.00020435,2]
[374599115,1753369844341,-460.0,0.00020435,2]
[374599116,1753369844351,-460.0,0.00020435,2]
[374599117,1753369844361,-588.8146538,0.00020435,2]
[374599118,1753369844371,-460.0,0.00020435,2]
[374599119,1753369844380,-460.0,0.00020435,2]
[374599120,1753369844390,-460.0,0.00020435,2]
[374599121,1753369844399,-460.0,0.00020435,2]
[374599122,1753369844408,-892.16,0.00020435,2]
[374599123,1753369844417,-460.0,0.00020435,2]
[374599124,1753369844427,-460.0,0.00020435,2]
[374599125,1753369844437,-460.0,0.00020435,2]
[374599126,1753369844447,-460.0,0.00020435,2]
[374599127,1753369844457,-460.0,0.00020435,2]
[374599128,1753369844467,-520.87,0.00020435,2]
[374599129,1753369844477,-460.0,0.00020435,2]
[374599130,1753369844487,-1355.64,0.00020435,2]
[374599131,1753369844497,-728.36,0.00020435,2]
[374599132,1753369844508,-460.0,0.00020435,2]
[374599133,1753369844520,-1595.08,0.00020435,2]
[374599134,1753369844530,-470.01,0.00020435,2]
[374599135,1753369844541,-460.0,0.00020435,2]
[374599136,1753369844552,-460.0,0.00020435,2]
[374599137,1753369844565,-685.2464981,0.00020481,2]
[374599138,1753369844577,-500.0,0.00020521,2]
[374599139,1753369844587,-2207.52044602,0.00020521,3]
[374599140,1753369844596,-460.0,0.00020533,2]
[374599141,1753369844605,-460.0,0.00020533,2]
[374599142,1753369844615,-460.0,0.00020534,2]
[374599143,1753369844624,-460.0,0.00020534,2]
[374599144,1753369844633,-460.0,0.00020536,2]
[374599145,1753369844643,-460.0,0.00020536,2]
[374599146,1753369844652,-160.0,0.00020545,2]
[374599147,1753369844662,-500.0,0.00020586,2]
[374599148,1753369844671,-500.0,0.00020586,2]
[374599149,1753369844680,-476.79463412,0.00020613,2]
[374599150,1753369844689,-160.0,0.0002062,2]
[374599151,1753369844698,-160.0,0.0002062,2]
[374599152,1753369844707,-840.23756827,0.0002062,2]
[374599153,1753369844716,-160.0,0.0002062,2]
[374599154,1753369844725,-231.16387093,0.0002062,2]
[374599155,1753369844735,-160.0,0.0002062,2]
[374599156,1753369844745,-160.0,0.0002062,2]
[374599157,1753369844754,-12624.810388,0.0002062,2]
[374599158,1753369844763,-215.88777038,0.0002062,2]
[374599159,1753369844774,-160.0,0.0002062,2]
[374599160,1753369844783,-214.7213231,0.00020623,2]
[374599161,1753369844793,-160.0,0.00020623,2]
[374599162,1753369844803,-460.0,0.00020704,2]
[374599163,1753369844814,-1817.27,0.00020704,2]
[374599164,1753369844825,-622.61,0.00020704,2]
[374599165,1753369844835,-460.0,0.00020705,2]
[374599166,1753369844844,-460.0,0.00020705,2]
[374599167,1753369844854,-460.0,0.00020705,2]
[374599168,1753369844863,-568.76,0.00020705,2]
[374599169,1753369844874,-460.0,0.00020705,2]
[374599170,1753369844884,-1345.73,0.00020705,2]
[374599171,1753369844894,-460.0,0.00020705,2]
[374599172,1753369844904,-460.0,0.00020705,2]
[374599173,1753369844914,-387.39978914,0.00020705,2]
[374599174,1753369844923,-915.03,0.00020705,2]
[374599175,1753369844933,-263.88491599,0.00020706,2]
[374599176,1753369844943,-550.98,0.00020706,2]
[374599177,1753369844952,-460.0,0.00020706,2]
[374599178,1753369844962,-460.0,0.00020706,2]
[374599179,1753369844973,-460.0,0.00020706,2]
[374599180,1753369844983,-460.0,0.00020706,2]
[374599181,1753369844992,-460.0,0.00020706,2]
[374599182,1753369845002,-460.0,0.00020706,2]
[374599183,1753369845012,-460.0,0.00020706,2]
[374599184,1753369845023,-460.0,0.00020706,2]
[374599185,1753369845032,-460.0,0.00020706,2]
[374599186,1753369845042,-460.0,0.00020706,2]
[374599187,1753369845051,-2764.12,0.00020706,2]
[374599191,1753369845061,-460.0,0.00020706,2]
[374599192,1753369845163,-460.0,0.00020706,2]
[374599193,1753369845174,-460.0,0.00020706,2]
[374599194,1753369845184,-460.0,0.00020706,2]
[374599195,1753369845194,-460.0,0.00020709,2]
[374599196,1753369845206,-460.0,0.00020709,2]
[374599197,1753369845223,-460.0,0.00020709,2]
[374599198,1753369845234,-460.0,0.00020709,2]
[374599199,1753369845243,-460.0,0.00020709,2]
[374599200,1753369845255,-460.0,0.00020709,2]
[374599202,1753369845265,-460.0,0.00020709,2]
[374599203,1753369845278,-460.0,0.00020709,2]
[374599205,1753369845291,-460.0,0.00020709,2]
[374599207,1753369845302,-460.0,0.00020709,2]
[374599208,1753369845312,-460.0,0.00020709,2]
[374599209,1753369845322,-460.0,0.00020709,2]
[374599210,1753369845331,-892.16,0.00020709,2]
[374599211,1753369845342,-460.0,0.00020709,2]
[374599212,1753369845352,-460.0,0.00020709,2]
[374599213,1753369845363,-153.28,0.00020709,2]
[374599214,1753369845373,-460.0,0.00020709,2]
[374599215,1753369845383,-460.0,0.00020709,2]
[374599216,1753369845392,-520.87,0.00020709,2]
[374599217,1753369845402,-460.0,0.00020709,2]
[374599218,1753369845411,-1355.64,0.00020709,2]
[374599219,1753369845421,-728.36,0.00020709,2]
[374599220,1753369845433,-460.0,0.00020709,2]
[374599221,1753369845443,-1595.08,0.00020709,2]
[374599222,1753369845453,-470.01,0.00020709,2]
[374599223,1753369845462,-460.0,0.00020709,2]
[374599224,1753369845472,-2207.52044602,0.00020728,3]
[374599225,1753369845481,-460.0,0.00020807,2]
[374599226,1753369845490,-460.0,0.00020808,2]
[374599227,1753369845499,-199.3,0.0002081,2]
[374599228,1753369845509,-302.002,0.00020931,2]
[374599229,1753369845521,-2207.52044602,0.00020934,4]
[374599230,1753369845531,-500.0,0.00020956,2]
[374599231,1753369845541,-392.78714662,0.00020967,2]
[374599232,1753369845551,-460.0,0.00020978,2]
[374599233,1753369845560,-1817.27,0.00020978,2]
[374599234,1753369845570,-622.61,0.00020978,2]
[374599235,1753369845580,-460.0,0.00020979,2]
[374599236,1753369845590,-460.0,0.00020979,2]
[374599237,1753369845599,-568.76,0.00020979,2]
[374599238,1753369845609,-460.0,0.00020979,2]
[374599239,1753369845619,-1345.73,0.00020979,2]
[374599240,1753369845629,-460.0,0.00020979,2]
[374599241,1753369845639,-460.0,0.00020979,2]
[374599242,1753369845649,-915.03,0.00020979,2]
[374599243,1753369845659,-550.98,0.0002098,2]
[374599244,1753369845669,-460.0,0.0002098,2]
[374599245,1753369845680,-460.0,0.0002098,2]
[374599246,1753369845691,-460.0,0.0002098,2]
[374599247,1753369845700,-460.0,0.0002098,2]
[374599248,1753369845710,-460.0,0.0002098,2]
[374599249,1753369845720,-460.0,0.0002098,2]
[374599250,1753369845730,-460.0,0.0002098,2]
[374599251,1753369845739,-460.0,0.0002098,2]
[374599252,1753369845749,-460.0,0.0002098,2]
[374599253,1753369845758,-2764.12,0.0002098,2]
[374599254,1753369845767,-460.0,0.0002098,2]
[374599255,1753369845778,-460.0,0.0002098,2]
[374599256,1753369845788,-460.0,0.0002098,2]
[374599257,1753369845797,-460.0,0.0002098,2]
[374599258,1753369845807,-460.0,0.00020983,2]
[374599259,1753369845817,-460.0,0.00020983,2]
[374599260,1753369845827,-460.0,0.00020983,2]
[374599261,1753369845836,-460.0,0.00020983,2]
[374599262,1753369845846,-460.0,0.00020983,2]
[374599263,1753369845856,-460.0,0.00020983,2]
[374599264,1753369845866,-460.0,0.00020983,2]
[374599265,1753369845875,-600.78355117,0.00020983,2]
[374599266,1753369845885,-163.69,0.00020983,2]
[374599267,1753369845894,-460.0,0.00020983,2]
[374599268,1753369845904,-460.0,0.00020983,2]
[374599269,1753369845913,-892.16,0.00020983,2]
[374599270,1753369845923,-460.0,0.00020983,2]
[374599272,1753369845933,-460.0,0.00020983,2]
[374599273,1753369845944,-460.0,0.00020983,2]
[374599274,1753369845956,-520.87,0.00020983,2]
[374599275,1753369845965,-412.05105098,0.00020983,2]
[374599276,1753369845974,-1355.64,0.00020983,2]
[374599277,1753369845984,-728.36,0.00020983,2]
[374599278,1753369845993,-460.0,0.00020983,2]
[374599279,1753369846002,-1595.08,0.00020983,2]
[374599281,1753369846012,-470.01,0.00020983,2]
[374599283,1753369846022,-460.0,0.00020983,2]
[374599285,1753369846031,-460.0,0.00021081,2]
[374599287,1753369846041,-460.0,0.00021082,2]
[374599288,1753369846051,-260.0,0.00021093,2]
[374599290,1753369846060,-1000.0,0.00021134,2]
[374599292,1753369846069,-2207.52044602,0.00021141,4]
[374599294,1753369846079,-500.0,0.00021164,2]
[374599295,1753369846088,-422.86809037,0.00021252,2]
[374599296,1753369846098,-1817.27,0.00021252,2]
[374599298,1753369846107,-622.61,0.00021252,2]
[374599300,1753369846116,-207.29,0.00021253,2]
[374599301,1753369846126,-445.84,0.00021253,2]
[374599303,1753369846135,-568.76,0.00021253,2]
[374599305,1753369846145,-460.0,0.00021253,2]
[374599307,1753369846155,-1345.73,0.00021253,2]
[374599309,1753369846165,-460.0,0.00021253,2]
[374599311,1753369846175,-460.0,0.00021253,2]
[374599312,1753369846184,-915.03,0.00021253,2]
[374599313,1753369846194,-550.98,0.00021254,2]
[374599314,1753369846205,-460.0,0.00021254,2]
[374599316,1753369846215,-460.0,0.00021254,2]
[374599317,1753369846225,-460.0,0.00021254,2]
[374599318,1753369846234,-460.0,0.00021254,2]
[374599319,1753369846249,-563.25279057,0.00021254,2]
[374599320,1753369846263,-460.0,0.00021254,2]
[374599321,1753369846278,-460.0,0.00021254,2]
[374599322,1753369846293,-460.0,0.00021254,2]
[374599324,1753369846305,-460.0,0.00021254,2]
[374599325,1753369846319,-2764.12,0.00021254,2]
[374599326,1753369846332,-460.0,0.00021254,2]
[374599328,1753369846345,-460.0,0.00021254,2]
[374599329,1753369846358,-460.0,0.00021254,2]
[374599332,1753369846370,-460.0,0.00021254,2]
[374599333,1753369846384,-460.0,0.00021257,2]
[374599336,1753369846398,-547.57,0.00021257,2]
[374599337,1753369846410,-460.0,0.00021257,2]
[374599338,1753369846422,-460.0,0.00021257,2]
[374599339,1753369846434,-460.0,0.00021257,2]
[374599340,1753369846445,-460.0,0.00021257,2]
[374599341,1753369846458,-460.0,0.00021257,2]
[374599342,1753369846472,-892.16,0.00021257,2]
[374599343,1753369846485,-460.0,0.00021257,2]
[374599344,1753369846495,-460.0,0.00021257,2]
[374599345,1753369846505,-460.0,0.00021257,2]
[374599346,1753369846517,-520.87,0.00021257,2]
[374599347,1753369846530,-1355.64,0.00021257,2]
[374599348,1753369846543,-728.36,0.00021257,2]
[374599349,1753369846556,-460.0,0.00021257,2]
[374599350,1753369846569,-1595.08,0.00021257,2]
[374599351,1753369846582,-470.01,0.00021257,2]
[374599352,1753369846596,-460.0,0.00021257,2]
[374599353,1753369846610,-500.0,0.000213,2]
[374599354,1753369846622,-500.0,0.000213,2]
[374599355,1753369846632,-500.0,0.000213,2]
[374599356,1753369846642,-2207.52044602,0.00021348,5]
[374599357,1753369846654,-685.2464981,0.00021351,2]
[374599358,1753369846668,-460.0,0.00021355,2]
[374599359,1753369846681,-460.0,0.00021356,2]
[374599360,1753369846694,-420.0,0.00021358,2]
[374599361,1753369846705,-312.0,0.00021361,2]
[374599362,1753369846717,-978.0,0.0002146,2]
[374599363,1753369846730,-500.0,0.00021504,2]
[374599364,1753369846743,-1817.27,0.00021526,2]
[374599365,1753369846755,-622.61,0.00021526,2]
[374599366,1753369846766,-568.76,0.00021527,2]
[374599367,1753369846781,-460.0,0.00021527,2]
[374599368,1753369846794,-1345.73,0.00021527,2]
[374599369,1753369846806,-460.0,0.00021527,2]
[374599370,1753369846818,-460.0,0.00021527,2]
[374599371,1753369846830,-915.03,0.00021527,2]
[374599372,1753369846842,-550.98,0.00021528,2]
[374599373,1753369846853,-265.87010225,0.00021528,2]
[374599374,1753369846865,-460.0,0.00021528,2]
[374599375,1753369846876,-460.0,0.00021528,2]
[374599376,1753369846888,-460.0,0.00021528,2]
[374599377,1753369846899,-460.0,0.00021528,2]
[374599378,1753369846911,-460.0,0.00021528,2]
[374599379,1753369846923,-460.0,0.00021528,2]
[374599380,1753369846935,-460.0,0.00021528,2]
[374599381,1753369846947,-2764.12,0.00021528,2]
[374599382,1753369846960,-460.0,0.00021528,2]
[374599383,1753369846971,-460.0,0.00021528,2]
[374599384,1753369846982,-460.0,0.00021528,2]
[374599385,1753369846995,-460.0,0.00021528,2]
[374599386,1753369847006,-460.0,0.00021531,2]
[374599387,1753369847017,-460.0,0.00021531,2]
[374599388,1753369847031,-460.0,0.00021531,2]
[374599389,1753369847043,-395.03976621,0.00021531,2]
[374599390,1753369847055,-460.0,0.00021531,2]
[374599391,1753369847067,-460.0,0.00021531,2]
[374599392,1753369847078,-892.16,0.00021531,2]
[374599393,1753369847090,-460.0,0.00021531,2]
[374599394,1753369847102,-460.0,0.00021531,2]
[374599395,1753369847113,-460.0,0.00021531,2]
[374599396,1753369847125,-520.87,0.00021531,2]
[374599397,1753369847136,-1355.64,0.00021531,2]
[374599398,1753369847148,-728.36,0.00021531,2]
[374599399,1753369847160,-1595.08,0.00021531,2]
[374599400,1753369847171,-470.01,0.00021531,2]
[374599401,1753369847183,-460.0,0.00021531,2]
[374599402,1753369847195,-2207.52044602,0.00021555,5]
[374599403,1753369847207,-460.0,0.00021629,2]
[374599404,1753369847221,-460.0,0.0002163,2]
[374599405,1753369847234,-300.0,0.00021641,2]
[374599406,1753369847245,-500.0,0.00021682,2]
[374599407,1753369847259,-500.0,0.000217,2]
[374599408,1753369847271,-500.0,0.000217,2]
[374599409,1753369847283,-500.0,0.000217,2]
[374599410,1753369847295,-500.0,0.000217,2]
[374599411,1753369847306,-2207.52044602,0.00021762,5]
[374599412,1753369847318,-1817.27,0.000218,2]
[374599413,1753369847330,-622.61,0.000218,2]
[374599414,1753369847342,-568.76,0.00021801,2]
[374599415,1753369847353,-488.0514365,0.00021801,2]
[374599416,1753369847365,-1345.73,0.00021801,2]
[374599417,1753369847378,-440.84803616,0.00021801,2]
[374599418,1753369847388,-460.0,0.00021801,2]
[374599419,1753369847398,-915.03,0.00021801,2]
[374599420,1753369847407,-550.98,0.00021802,2]
[374599421,1753369847417,-460.0,0.00021802,2]
[374599422,1753369847426,-460.0,0.00021802,2]
[374599423,1753369847435,-220.89090154,0.00021802,2]
[374599424,1753369847445,-460.0,0.00021802,2]
[374599425,1753369847455,-460.0,0.00021802,2]
[374599426,1753369847465,-209.64561733,0.00021802,2]
[374599427,1753369847474,-460.0,0.00021802,2]
[374599428,1753369847484,-2764.12,0.00021802,2]
[374599429,1753369847493,-460.0,0.00021802,2]
[374599430,1753369847667,-460.0,0.00021802,2]
[374599431,1753369847680,-460.0,0.00021802,2]
[374599432,1753369847691,-460.0,0.00021802,2]
[374599433,1753369847701,-460.0,0.00021805,2]
[374599434,1753369847711,-228.64,0.00021805,2]
[374599435,1753369847720,-460.0,0.00021805,2]
[374599436,1753369847730,-460.0,0.00021805,2]
[374599437,1753369847741,-460.0,0.00021805,2]
[374599438,1753369847750,-892.16,0.00021805,2]
[374599439,1753369847760,-460.0,0.00021805,2]